[Event "56th Biel Festival MTO 2023"]
[White "Pham,Le Thao Nguyen"]
[Black "Lohia,Sohum"]
[Site "Biel"]
[Round "7.24"]
[Annotator "ChessBase"]
[Result "1/2-1/2"]
[Date "2023.07.25"]
[WhiteElo "2369"]
[BlackElo "2247"]
[PlyCount "66"]
[TimeControl "60"]

1. d4 {[%emt 0:0:0]} Nf6 {[%emt 0:0:0]} 2. Nf3 {[%emt 0:0:0]} e6 {[%emt 0:0:0]} 3. Bf4 {[%emt 0:1:24]} d5 {[%emt 0:0:0]} 4. e3 {[%emt 0:0:21]} Bd6 {[%emt 0:0:0]} 5. Bg3 {[%emt 0:1:4]} O-O {[%emt 0:0:0]} 6. Nbd2 {[%emt 0:0:37]} c5 {[%emt 0:0:0]} 7. c3 {[%emt 0:1:25]} Qc7 {[%emt 0:0:0]} 8. Bxd6 {[%emt 0:1:25]} Qxd6 {[%emt 0:0:0]} 9. Ne5 {[%emt 0:0:21]} Nfd7 {[%emt 0:0:55]} 10. f4 {[%emt 0:5:21]} f6 {[%emt 0:4:35]} 11. Nxd7 {[%emt 0:2:57]} Bxd7 {[%emt 0:4:3]} 12. Be2 {[%emt 0:8:56]} e5 {[%emt 0:4:52]} 13. dxe5 {[%emt 0:3:0]} Qe7 {[%emt 0:21:12]} 14. Nf3 {[%emt 0:10:56]} Bc6 {[%emt 0:4:16]} 15. c4 {[%emt 0:12:13]} dxc4 {[%emt 0:7:40]} 16. Bxc4+ {[%emt 0:0:43]} Kh8 {[%emt 0:0:15]} 17. Qd6 {[%emt 0:5:29]} Qxd6 {[%emt 0:1:24]} 18. exd6 {[%emt 0:0:8]} Nd7 {[%emt 0:4:56]} 19. Kf2 {[%emt 0:1:42]} Nb6 {[%emt 0:4:58]} 20. Be6 {[%emt 0:4:4]} Rfe8 {[%emt 0:3:58]} 21. f5 {[%emt 0:1:15]} Na4 {[%emt 0:13:6]} 22. Rab1 {[%emt 0:11:30]} Be4 {[%emt 0:8:38]} 23. Bd7 {[%emt 0:7:7]} Bxb1 {[%emt 0:0:26]} 24. Bxe8 {[%emt 0:0:13]} Rxe8 {[%emt 0:0:40]} 25. Rxb1 {[%emt 0:0:20]} Rd8 {[%emt 0:1:11]} 26. Rd1 {[%emt 0:2:6]} Nxb2 {[%emt 0:2:25]} 27. Rb1 {[%emt 0:0:11]} Nc4 {[%emt 0:5:22]} 28. Rxb7 {[%emt 0:0:21]} Nxd6 {[%emt 0:0:16]} 29. Rxa7 {[%emt 0:0:19]} Nxf5 {[%emt 0:0:46]} 30. Rc7 {[%emt 0:7:39]} Ra8 {[%emt 0:4:5]} 31. a4 {[%emt 0:0:54]} g6 {[%emt 0:0:58]} 32. Rxc5 {[%emt 0:4:14]} Rxa4 {[%emt 0:0:20]} 33. Rc2 {[%emt 0:0:21]} Re4 {[%emt 0:0:39]} 1/2-1/2

[Event "56th Biel Festival MTO 2023"]
[White "Frey,Fabian"]
[Black "Besou,Hussain"]
[Site "Biel"]
[Round "7.25"]
[Annotator "ChessBase"]
[Result "1/2-1/2"]
[Date "2023.07.25"]
[WhiteElo "2230"]
[BlackElo "2348"]
[PlyCount "108"]
[TimeControl "60"]

1. e4 {[%emt 0:0:0]} c5 {[%emt 0:0:0]} 2. Nf3 {[%emt 0:0:0]} d6 {[%emt 0:0:0]} 3. d4 {[%emt 0:0:0]} cxd4 {[%emt 0:0:0]} 4. Nxd4 {[%emt 0:0:0]} Nf6 {[%emt 0:0:0]} 5. Nc3 {[%emt 0:0:0]} a6 {[%emt 0:0:0]} 6. h3 {[%emt 0:0:0]} e5 {[%emt 0:0:0]} 7. Nf3 {[%emt 0:0:0]} Be7 {[%emt 0:0:0]} 8. g4 {[%emt 0:0:0]} h6 {[%emt 0:0:0]} 9. Rg1 {[%emt 0:0:0]} Qc7 {[%emt 0:8:19]} 10. g5 {[%emt 0:0:0]} hxg5 {[%emt 0:0:18]} 11. Nxg5 {[%emt 0:0:0]} Nbd7 {[%emt 0:5:22]} 12. Qf3 {[%emt 0:16:34]} Rf8 {[%emt 0:4:57]} 13. Be3 {[%emt 0:18:31]} b5 {[%emt 0:6:53]} 14. O-O-O {[%emt 0:0:51]} Bb7 {[%emt 0:11:15]} 15. Kb1 {[%emt 0:0:18]} Rc8 {[%emt 0:3:48]} 16. Qe2 {[%emt 0:0:54]} Nb6 {[%emt 0:6:17]} 17. Rg3 {[%emt 0:1:43]} Rh8 {[%emt 0:10:22]} 18. Qd2 {[%emt 0:23:7]} b4 {[%emt 0:4:57]} 19. Bxb6 {[%emt 0:0:41]} Qxb6 {[%emt 0:0:38]} 20. Nd5 {[%emt 0:1:56]} Nxd5 {[%emt 0:5:36]} 21. exd5 {[%emt 0:0:28]} Rh4 {[%emt 0:0:9]} 22. Bd3 {[%emt 0:13:42]} Rf4 {[%emt 0:4:25]} 23. f3 {[%emt 0:3:4]} Bxd5 {[%emt 0:2:44]} 24. Be4 {[%emt 0:5:43]} Bb7 {[%emt 0:4:13]} 25. Bxb7 {[%emt 0:1:40]} Qxb7 {[%emt 0:3:5]} 26. Ne4 {[%emt 0:0:18]} Qc6 {[%emt 0:3:56]} 27. Rxg7 {[%emt 0:0:47]} d5 {[%emt 0:1:55]} 28. Rg8+ {[%emt 0:1:4]} Bf8 {[%emt 0:0:16]} 29. Ng5 {[%emt 0:1:15]} Rd4 {[%emt 0:2:19]} 30. Qe2 {[%emt 0:1:23]} Rxd1+ {[%emt 0:0:7]} 31. Qxd1 {[%emt 0:0:4]} Ke7 {[%emt 0:1:21]} 32. Rh8 {[%emt 0:4:48]} Qf6 {[%emt 0:6:43]} 33. Rg8 {[%emt 0:0:42]} Qf5 {[%emt 0:0:12]} 34. Qd3 {[%emt 0:6:15]} Qxd3 {[%emt 0:0:36]} 35. cxd3 {[%emt 0:0:2]} Rc6 {[%emt 0:0:33]} 36. h4 {[%emt 0:1:2]} Rh6 {[%emt 0:0:35]} 37. f4 {[%emt 0:0:30]} Rxh4 {[%emt 0:0:34]} 38. Nf3 {[%emt 0:0:33]} Rh1+ {[%emt 0:1:13]} 39. Rg1 {[%emt 0:1:20]} Rxg1+ {[%emt 0:0:6]} 40. Nxg1 {[%emt 0:0:4]} exf4 {[%emt 0:0:32]} 41. b3 {[%emt 0:0:0]} Kf6 {[%emt 0:7:2]} 42. Kc2 {[%emt 0:0:0]} Kf5 {[%emt 0:3:18]} 43. Kd1 {[%emt 0:0:0]} Kg4 {[%emt 0:0:52]} 44. Ke2 {[%emt 0:0:0]} Kg3 {[%emt 0:1:50]} 45. Nf3 {[%emt 0:0:0]} Bc5 {[%emt 0:0:57]} 46. Ne1 {[%emt 0:0:0]} Bf2 {[%emt 0:0:58]} 47. Nf3 {[%emt 0:0:0]} Kg2 {[%emt 0:0:23]} 48. Nd2 {[%emt 0:0:0]} Bd4 {[%emt 0:1:17]} 49. Nf3 {[%emt 0:0:0]} Bc3 {[%emt 0:0:24]} 50. Nh4+ {[%emt 0:0:0]} Kg3 {[%emt 0:0:6]} 51. Nf3 {[%emt 0:0:0]} f6 {[%emt 0:1:2]} 52. Ng1 {[%emt 0:0:0]} Bd4 {[%emt 0:1:39]} 53. Nf3 {[%emt 0:0:0]} Be3 {[%emt 0:0:4]} 54. Ne1 {[%emt 0:0:3]} Bd4 {[%emt 0:1:15]} 1/2-1/2

[Event "56th Biel Festival MTO 2023"]
[White "Aarav Dengla"]
[Black "Ouellet,Maili-Jade"]
[Site "Biel"]
[Round "7.26"]
[Annotator "ChessBase"]
[Result "1-0"]
[Date "2023.07.26"]
[WhiteElo "2343"]
[BlackElo "2201"]
[PlyCount "129"]
[TimeControl "60"]

1. e4 {[%emt 0:0:0]} c5 {[%emt 0:0:0]} 2. Nf3 {[%emt 0:0:0]} Nc6 {[%emt 0:0:0]} 3. d4 {[%emt 0:0:0]} cxd4 {[%emt 0:0:0]} 4. Nxd4 {[%emt 0:0:0]} Nf6 {[%emt 0:0:0]} 5. Nc3 {[%emt 0:0:0]} e5 {[%emt 0:0:0]} 6. Ndb5 {[%emt 0:0:0]} d6 {[%emt 0:0:0]} 7. Bg5 {[%emt 0:0:0]} a6 {[%emt 0:0:0]} 8. Na3 {[%emt 0:0:0]} b5 {[%emt 0:0:0]} 9. Nab1 {[%emt 0:0:0]} Ne7 {[%emt 0:0:0]} 10. Nd2 {[%emt 0:0:0]} d5 {[%emt 0:0:0]} 11. exd5 {[%emt 0:0:44]} Nexd5 {[%emt 0:0:0]} 12. Qf3 {[%emt 0:12:55]} Bb7 {[%emt 0:41:47]} 13. Bxf6 {[%emt 0:0:46]} Qxf6 {[%emt 0:10:53]} 14. Nxd5 {[%emt 0:7:30]} Qxf3 {[%emt 0:0:7]} 15. Nxf3 {[%emt 0:0:4]} Bxd5 {[%emt 0:0:8]} 16. Nxe5 {[%emt 0:0:2]} Bd6 {[%emt 0:10:15]} 17. Ng4 {[%emt 0:8:12]} Ke7 {[%emt 0:3:3]} 18. Ne3 {[%emt 0:1:13]} Be6 {[%emt 0:0:21]} 19. O-O-O {[%emt 0:21:36]} Bf4 {[%emt 0:14:58]} 20. g3 {[%emt 0:1:19]} Bxe3+ {[%emt 0:0:46]} 21. fxe3 {[%emt 0:0:2]} Rhc8 {[%emt 0:1:30]} 22. b3 {[%emt 0:3:11]} Rc5 {[%emt 0:5:39]} 23. Bd3 {[%emt 0:1:45]} a5 {[%emt 0:1:43]} 24. Rhf1 {[%emt 0:3:1]} h5 {[%emt 0:2:20]} 25. Rf4 {[%emt 0:2:30]} Rac8 {[%emt 0:1:14]} 26. Rdf1 {[%emt 0:0:54]} R8c7 {[%emt 0:1:45]} 27. Kd2 {[%emt 0:0:7]} Rd7 {[%emt 0:1:16]} 28. Rd4 {[%emt 0:1:33]} Rdc7 {[%emt 0:0:7]} 29. a3 {[%emt 0:1:34]} Rc8 {[%emt 0:1:40]} 30. Rdf4 {[%emt 0:3:15]} R8c7 {[%emt 0:0:26]} 31. Re4 {[%emt 0:3:36]} Kd6 {[%emt 0:1:30]} 32. Rd4+ {[%emt 0:0:19]} Ke7 {[%emt 0:0:7]} 33. b4 {[%emt 0:0:8]} Rc3 {[%emt 0:1:2]} 34. bxa5 {[%emt 0:0:13]} Rxa3 {[%emt 0:0:38]} 35. Rb1 {[%emt 0:0:30]} Rxa5 {[%emt 0:1:49]} 36. Rxb5 {[%emt 0:0:6]} Ra2 {[%emt 0:1:4]} 37. Rdb4 {[%emt 0:2:56]} g6 {[%emt 0:0:47]} 38. e4 {[%emt 0:1:34]} Ra1 {[%emt 0:0:50]} 39. Rb1 {[%emt 0:0:37]} Rxb1 {[%emt 0:0:52]} 40. Rxb1 {[%emt 0:0:1]} Rc8 {[%emt 0:0:44]} 41. Rb4 {[%emt 0:34:52]} Ra8 {[%emt 0:0:0]} 42. Ke3 {[%emt 0:0:0]} Ra1 {[%emt 0:0:0]} 43. Rb2 {[%emt 0:0:0]} Ra4 {[%emt 0:0:0]} 44. Bb5 {[%emt 0:0:0]} Ra3+ {[%emt 0:0:0]} 45. Kd4 {[%emt 0:0:0]} h4 {[%emt 0:0:0]} 46. gxh4 {[%emt 0:0:0]} Rh3 {[%emt 0:0:0]} 47. c4 {[%emt 0:0:0]} Rxh4 {[%emt 0:0:0]} 48. Bc6 {[%emt 0:0:0]} Kd6 {[%emt 0:23:16]} 49. Ba8 {[%emt 0:0:0]} f5 {[%emt 0:3:6]} 50. c5+ {[%emt 0:0:0]} Kc7 {[%emt 0:2:29]} 51. Rb7+ {[%emt 0:0:0]} Kc8 {[%emt 0:2:56]} 52. Re7 {[%emt 0:1:6]} Kb8 {[%emt 0:2:35]} 53. Re8+ {[%emt 0:10:5]} Bc8 {[%emt 0:0:8]} 54. Bd5 {[%emt 0:1:10]} Kc7 {[%emt 0:0:20]} 55. Re7+ {[%emt 0:1:51]} Kb8 {[%emt 0:0:54]} 56. c6 {[%emt 0:1:15]} fxe4 {[%emt 0:0:23]} 57. Kc5 {[%emt 0:2:29]} Rxh2 {[%emt 0:0:4]} 58. Kd6 {[%emt 0:5:42]} g5 {[%emt 0:0:21]} 59. c7+ {[%emt 0:4:15]} Ka7 {[%emt 0:0:1]} 60. Re8 {[%emt 0:0:12]} Bg4 {[%emt 0:2:22]} 61. Ra8+ {[%emt 0:1:20]} Kb6 {[%emt 0:0:4]} 62. Rb8+ {[%emt 0:0:3]} Ka7 {[%emt 0:2:12]} 63. Be6 {[%emt 0:1:19]} Rh6 {[%emt 0:0:0]} 64. c8=Q {[%emt 0:0:0]} Rxe6+ {[%emt 0:0:0]} 65. Kd5 {[%emt 0:0:0]} 1-0

[Event "56th Biel Festival MTO 2023"]
[White "Sutter,Oliver"]
[Black "Urh,Zala"]
[Site "Biel"]
[Round "7.27"]
[Annotator "ChessBase"]
[Result "1-0"]
[Date "2023.07.25"]
[WhiteElo "2313"]
[BlackElo "2231"]
[PlyCount "79"]
[TimeControl "60"]

1. d4 {[%emt 0:0:0]} Nf6 {[%emt 0:0:0]} 2. c4 {[%emt 0:0:0]} g6 {[%emt 0:0:0]} 3. g3 {[%emt 0:0:0]} Bg7 {[%emt 0:0:0]} 4. Bg2 {[%emt 0:0:0]} d5 {[%emt 0:0:0]} 5. cxd5 {[%emt 0:0:0]} Nxd5 {[%emt 0:0:0]} 6. e4 {[%emt 0:0:0]} Nb6 {[%emt 0:0:0]} 7. Ne2 {[%emt 0:0:0]} c5 {[%emt 0:0:0]} 8. d5 {[%emt 0:0:0]} O-O {[%emt 0:0:0]} 9. O-O {[%emt 0:0:0]} e6 {[%emt 0:0:0]} 10. Nec3 {[%emt 0:0:0]} Na6 {[%emt 0:0:54]} 11. Na3 {[%emt 0:0:0]} exd5 {[%emt 0:0:57]} 12. exd5 {[%emt 0:0:0]} Bf5 {[%emt 0:21:36]} 13. d6 {[%emt 0:13:24]} Qd7 {[%emt 0:7:17]} 14. Bg5 {[%emt 0:1:51]} f6 {[%emt 0:7:24]} 15. Bf4 {[%emt 0:1:35]} g5 {[%emt 0:0:28]} 16. Be3 {[%emt 0:1:53]} Rfe8 {[%emt 0:1:20]} 17. Qb3+ {[%emt 0:28:24]} Be6 {[%emt 0:6:3]} 18. Qb5 {[%emt 0:1:43]} Rad8 {[%emt 0:7:39]} 19. Rfd1 {[%emt 0:1:46]} Qc8 {[%emt 0:2:9]} 20. Rac1 {[%emt 0:9:1]} Bd7 {[%emt 0:2:38]} 21. Qb3+ {[%emt 0:7:37]} Be6 {[%emt 0:5:33]} 22. Qb5 {[%emt 0:2:6]} Bd7 {[%emt 0:2:19]} 23. Qf1 {[%emt 0:1:20]} Bc6 {[%emt 0:4:41]} 24. Nab5 {[%emt 0:9:47]} Qb8 {[%emt 0:8:10]} 25. a4 {[%emt 0:5:14]} Kh8 {[%emt 0:2:53]} 26. a5 {[%emt 0:3:30]} Bxg2 {[%emt 0:2:37]} 27. Kxg2 {[%emt 0:0:14]} Nd7 {[%emt 0:0:6]} 28. Nd5 {[%emt 0:1:1]} Re5 {[%emt 0:2:8]} 29. Kg1 {[%emt 0:2:43]} b6 {[%emt 0:3:35]} 30. Nbc7 {[%emt 0:3:3]} Nb4 {[%emt 0:0:25]} 31. Nxb4 {[%emt 0:0:13]} cxb4 {[%emt 0:0:4]} 32. Na6 {[%emt 0:2:12]} Qa8 {[%emt 0:1:31]} 33. axb6 {[%emt 0:1:0]} Nxb6 {[%emt 0:1:19]} 34. Bxb6 {[%emt 0:1:3]} axb6 {[%emt 0:0:8]} 35. Nxb4 {[%emt 0:0:30]} Re6 {[%emt 0:0:51]} 36. d7 {[%emt 0:0:9]} Bf8 {[%emt 0:5:56]} 37. Qc4 {[%emt 0:2:7]} Re4 {[%emt 0:0:52]} 38. Qc8 {[%emt 0:1:8]} Bxb4 {[%emt 0:0:32]} 39. Qxa8 {[%emt 0:0:15]} Rxa8 {[%emt 0:0:4]} 40. Rc8+ {[%emt 0:0:5]} 1-0

[Event "56th Biel Festival MTO 2023"]
[White "Adocchio,Giampiero"]
[Black "Nie,Xinyang"]
[Site "Biel"]
[Round "7.28"]
[Annotator "ChessBase"]
[Result "0-1"]
[Date "2023.07.25"]
[WhiteElo "2165"]
[BlackElo "2288"]
[PlyCount "86"]
[TimeControl "60"]

1. d4 {[%emt 0:0:0]} d5 {[%emt 0:0:0]} 2. c4 {[%emt 0:0:0]} e6 {[%emt 0:0:0]} 3. Nc3 {[%emt 0:0:0]} a6 {[%emt 0:0:0]} 4. cxd5 {[%emt 0:0:0]} exd5 {[%emt 0:0:0]} 5. Bf4 {[%emt 0:0:0]} c6 {[%emt 0:0:0]} 6. e3 {[%emt 0:0:0]} Bd6 {[%emt 0:0:0]} 7. Bd3 {[%emt 0:0:0]} Bxf4 {[%emt 0:0:0]} 8. exf4 {[%emt 0:0:0]} Ne7 {[%emt 0:0:0]} 9. Nf3 {[%emt 0:0:0]} Bf5 {[%emt 0:0:0]} 10. O-O {[%emt 0:0:0]} O-O {[%emt 0:0:0]} 11. Re1 {[%emt 0:0:0]} Bxd3 {[%emt 0:0:0]} 12. Qxd3 {[%emt 0:0:0]} Nd7 {[%emt 0:0:0]} 13. Ne5 {[%emt 0:1:58]} Nb6 {[%emt 0:0:0]} 14. Re3 {[%emt 0:11:53]} f6 {[%emt 0:0:0]} 15. Nf3 {[%emt 0:2:14]} Qd7 {[%emt 0:6:40]} 16. Rae1 {[%emt 0:5:38]} Qf5 {[%emt 0:2:41]} 17. Nh4 {[%emt 0:4:13]} Qxd3 {[%emt 0:0:6]} 18. Rxd3 {[%emt 0:0:3]} Rae8 {[%emt 0:0:39]} 19. Rde3 {[%emt 0:0:28]} Kf7 {[%emt 0:0:4]} 20. b3 {[%emt 0:1:11]} Nec8 {[%emt 0:5:33]} 21. Nf5 {[%emt 0:5:30]} Rxe3 {[%emt 0:0:6]} 22. fxe3 {[%emt 0:2:24]} Re8 {[%emt 0:0:7]} 23. Kf2 {[%emt 0:0:36]} g6 {[%emt 0:0:5]} 24. Ng3 {[%emt 0:0:29]} Nd6 {[%emt 0:0:6]} 25. Nge2 {[%emt 0:2:59]} a5 {[%emt 0:0:8]} 26. a4 {[%emt 0:2:54]} Nd7 {[%emt 0:0:10]} 27. g4 {[%emt 0:2:41]} h6 {[%emt 0:1:48]} 28. Ng3 {[%emt 0:11:29]} f5 {[%emt 0:0:57]} 29. h3 {[%emt 0:3:58]} Nf6 {[%emt 0:0:4]} 30. Kf3 {[%emt 0:2:21]} Ke6 {[%emt 0:2:14]} 31. Rg1 {[%emt 0:10:25]} b5 {[%emt 0:0:45]} 32. Rc1 {[%emt 0:5:41]} Rb8 {[%emt 0:2:30]} 33. axb5 {[%emt 0:2:24]} cxb5 {[%emt 0:0:9]} 34. g5 {[%emt 0:9:57]} hxg5 {[%emt 0:0:13]} 35. fxg5 {[%emt 0:0:11]} Nfe4 {[%emt 0:0:15]} 36. Ncxe4 {[%emt 0:0:21]} dxe4+ {[%emt 0:3:37]} 37. Ke2 {[%emt 0:1:48]} Rh8 {[%emt 0:0:40]} 38. Rh1 {[%emt 0:0:30]} a4 {[%emt 0:0:56]} 39. bxa4 {[%emt 0:2:11]} bxa4 {[%emt 0:0:4]} 40. h4 {[%emt 0:1:40]} a3 {[%emt 0:0:31]} 41. h5 {[%emt 0:35:14]} Rb8 {[%emt 0:30:5]} 42. Kd2 {[%emt 0:0:6]} Rb2+ {[%emt 0:0:13]} 43. Kc3 {[%emt 0:0:7]} Kd5 {[%emt 0:0:3]} 0-1

[Event "56th Biel Festival MTO 2023"]
[White "Schnepp,Gunnar"]
[Black "Wang,Chuqiao"]
[Site "Biel"]
[Round "7.29"]
[Annotator "ChessBase"]
[Result "1/2-1/2"]
[Date "2023.07.25"]
[WhiteElo "2278"]
[BlackElo "2161"]
[PlyCount "66"]
[TimeControl "60"]

1. Nf3 {[%emt 0:0:0]} Nf6 {[%emt 0:0:0]} 2. c4 {[%emt 0:0:0]} e6 {[%emt 0:0:0]} 3. g3 {[%emt 0:0:0]} d5 {[%emt 0:0:0]} 4. Bg2 {[%emt 0:0:0]} c6 {[%emt 0:0:0]} 5. O-O {[%emt 0:0:0]} Be7 {[%emt 0:0:0]} 6. b3 {[%emt 0:0:0]} O-O {[%emt 0:0:0]} 7. Bb2 {[%emt 0:0:0]} b6 {[%emt 0:0:0]} 8. d4 {[%emt 0:15:29]} Bb7 {[%emt 0:0:0]} 9. Nc3 {[%emt 0:2:53]} c5 {[%emt 0:3:1]} 10. Ne5 {[%emt 0:6:38]} Nbd7 {[%emt 0:4:45]} 11. cxd5 {[%emt 0:11:0]} exd5 {[%emt 0:4:22]} 12. Nd3 {[%emt 0:8:46]} cxd4 {[%emt 0:7:13]} 13. Nb5 {[%emt 0:0:33]} Nc5 {[%emt 0:0:21]} 14. Nf4 {[%emt 0:8:34]} d3 {[%emt 0:2:8]} 15. exd3 {[%emt 0:15:37]} a6 {[%emt 0:21:30]} 16. Nd4 {[%emt 0:0:52]} Bd6 {[%emt 0:0:25]} 17. b4 {[%emt 0:15:58]} Ncd7 {[%emt 0:0:48]} 18. Qd2 {[%emt 0:1:40]} Re8 {[%emt 0:2:5]} 19. Nf5 {[%emt 0:4:7]} Be5 {[%emt 0:1:26]} 20. Bxe5 {[%emt 0:0:2]} Nxe5 {[%emt 0:0:12]} 21. a3 {[%emt 0:2:4]} Qd7 {[%emt 0:0:46]} 22. Nd4 {[%emt 0:0:20]} Ng6 {[%emt 0:4:5]} 23. Bh3 {[%emt 0:1:11]} Qc7 {[%emt 0:1:46]} 24. Rac1 {[%emt 0:0:21]} Qd8 {[%emt 0:6:1]} 25. Rfe1 {[%emt 0:0:51]} Rxe1+ {[%emt 0:0:40]} 26. Rxe1 {[%emt 0:0:5]} Qf8 {[%emt 0:1:37]} 27. Nxg6 {[%emt 0:0:58]} hxg6 {[%emt 0:0:5]} 28. Qc3 {[%emt 0:0:27]} Qd6 {[%emt 0:1:18]} 29. Nf3 {[%emt 0:2:18]} Rd8 {[%emt 0:2:2]} 30. Qd4 {[%emt 0:0:29]} Bc8 {[%emt 0:0:38]} 31. Bg2 {[%emt 0:0:27]} Bb7 {[%emt 0:0:46]} 32. Bh3 {[%emt 0:0:14]} Bc8 {[%emt 0:0:6]} 33. Bg2 {[%emt 0:0:6]} Bb7 {[%emt 0:0:3]} 1/2-1/2

[Event "56th Biel Festival MTO 2023"]
[White "Asllani,Dorian"]
[Black "Akshit Kumar J"]
[Site "Biel"]
[Round "7.30"]
[Annotator "ChessBase"]
[Result "0-1"]
[Date "2023.07.25"]
[WhiteElo "2272"]
[BlackElo "2105"]
[PlyCount "100"]
[TimeControl "60"]

1. d4 {[%emt 0:0:0]} d5 {[%emt 0:0:0]} 2. c4 {[%emt 0:0:0]} c6 {[%emt 0:0:0]} 3. Nc3 {[%emt 0:0:0]} Nf6 {[%emt 0:0:0]} 4. e3 {[%emt 0:0:0]} e6 {[%emt 0:0:0]} 5. Nf3 {[%emt 0:0:0]} Nbd7 {[%emt 0:0:0]} 6. Bd3 {[%emt 0:0:0]} dxc4 {[%emt 0:0:0]} 7. Bxc4 {[%emt 0:0:0]} b5 {[%emt 0:0:0]} 8. Bd3 {[%emt 0:0:0]} Bd6 {[%emt 0:0:0]} 9. O-O {[%emt 0:0:0]} O-O {[%emt 0:0:0]} 10. Qc2 {[%emt 0:0:0]} Bb7 {[%emt 0:0:0]} 11. e4 {[%emt 0:0:0]} e5 {[%emt 0:0:0]} 12. Nxe5 {[%emt 0:0:0]} Nxe5 {[%emt 0:0:0]} 13. dxe5 {[%emt 0:0:0]} Bxe5 {[%emt 0:0:0]} 14. h3 {[%emt 0:3:11]} Re8 {[%emt 0:0:0]} 15. Be3 {[%emt 0:0:30]} a6 {[%emt 0:0:0]} 16. f4 {[%emt 0:0:30]} Bxc3 {[%emt 0:0:0]} 17. bxc3 {[%emt 0:0:30]} c5 {[%emt 0:0:0]} 18. e5 {[%emt 0:0:30]} c4 {[%emt 0:0:0]} 19. Be2 {[%emt 0:0:30]} Be4 {[%emt 0:0:0]} 20. Qb2 {[%emt 0:0:30]} Nd5 {[%emt 0:0:0]} 21. Bd4 {[%emt 0:0:30]} Qh4 {[%emt 0:0:0]} 22. Qd2 {[%emt 0:0:30]} Rad8 {[%emt 0:0:0]} 23. Kh2 {[%emt 0:0:30]} Qh6 {[%emt 0:0:0]} 24. Rae1 {[%emt 0:24:41]} f5 {[%emt 0:9:28]} 25. Bf3 {[%emt 0:28:45]} Bxf3 {[%emt 0:36:22]} 26. Rxf3 {[%emt 0:1:3]} Qe6 {[%emt 0:3:44]} 27. Rb1 {[%emt 0:13:15]} Qc6 {[%emt 0:27:14]} 28. Rg3 {[%emt 0:11:22]} Nc7 {[%emt 0:5:2]} 29. Qc2 {[%emt 0:1:25]} Ne6 {[%emt 0:1:0]} 30. Be3 {[%emt 0:3:10]} Rd3 {[%emt 0:3:22]} 31. a4 {[%emt 0:1:23]} Qe4 {[%emt 0:4:37]} 32. Qc1 {[%emt 0:7:43]} Rxc3 {[%emt 0:6:7]} 33. Qxc3 {[%emt 0:0:0]} Qxb1 {[%emt 0:0:3]} 34. Qa5 {[%emt 0:1:28]} b4 {[%emt 0:2:36]} 35. Qd5 {[%emt 0:2:19]} Qe4 {[%emt 0:2:36]} 36. Qxe4 {[%emt 0:1:22]} fxe4 {[%emt 0:0:6]} 37. f5 {[%emt 0:0:5]} b3 {[%emt 0:1:10]} 38. Bc1 {[%emt 0:0:25]} Nc5 {[%emt 0:2:33]} 39. e6 {[%emt 0:2:13]} g6 {[%emt 0:3:24]} 40. Rc3 {[%emt 0:1:32]} gxf5 {[%emt 0:0:32]} 41. Rg3+ {[%emt 0:0:0]} Kf8 {[%emt 0:0:0]} 42. Ba3 {[%emt 0:0:0]} Ke7 {[%emt 0:7:14]} 43. Bxc5+ {[%emt 0:0:0]} Kxe6 {[%emt 0:0:4]} 44. Ba3 {[%emt 0:0:0]} Kd5 {[%emt 0:0:24]} 45. Kg1 {[%emt 0:0:0]} e3 {[%emt 0:2:17]} 46. Kf1 {[%emt 0:0:0]} c3 {[%emt 0:0:36]} 47. Rg7 {[%emt 0:0:0]} Rb8 {[%emt 0:0:58]} 48. Rd7+ {[%emt 0:0:0]} Kc4 {[%emt 0:1:19]} 49. Rd1 {[%emt 0:0:0]} b2 {[%emt 0:0:19]} 50. Rb1 {[%emt 0:0:0]} c2 {[%emt 0:0:14]} 0-1

[Event "56th Biel Festival MTO 2023"]
[White "Zhang,Lanlin"]
[Black "Abdulrahman Mohammad,Al Taher"]
[Site "Biel"]
[Round "7.31"]
[Annotator "ChessBase"]
[Result "1-0"]
[Date "2023.07.25"]
[WhiteElo "2194"]
[BlackElo "2258"]
[PlyCount "111"]
[TimeControl "60"]

1. e4 {[%emt 0:0:0]} c5 {[%emt 0:0:0]} 2. Nf3 {[%emt 0:0:0]} d6 {[%emt 0:0:0]} 3. d4 {[%emt 0:0:0]} cxd4 {[%emt 0:0:0]} 4. Nxd4 {[%emt 0:0:0]} Nf6 {[%emt 0:0:0]} 5. Nc3 {[%emt 0:0:0]} Nc6 {[%emt 0:0:0]} 6. Bg5 {[%emt 0:0:0]} e6 {[%emt 0:0:0]} 7. Qd2 {[%emt 0:0:0]} a6 {[%emt 0:0:0]} 8. O-O-O {[%emt 0:0:0]} Bd7 {[%emt 0:0:0]} 9. f3 {[%emt 0:0:0]} Be7 {[%emt 0:0:0]} 10. g4 {[%emt 0:0:0]} h5 {[%emt 0:0:48]} 11. gxh5 {[%emt 0:1:7]} Nxh5 {[%emt 0:0:10]} 12. Bxe7 {[%emt 0:0:4]} Qxe7 {[%emt 0:0:13]} 13. Nde2 {[%emt 0:1:32]} b5 {[%emt 0:31:24]} 14. Qxd6 {[%emt 0:3:54]} Qxd6 {[%emt 0:0:28]} 15. Rxd6 {[%emt 0:0:6]} Ne5 {[%emt 0:0:47]} 16. f4 {[%emt 0:7:5]} Ng4 {[%emt 0:19:30]} 17. Bg2 {[%emt 0:11:10]} b4 {[%emt 0:3:19]} 18. e5 {[%emt 0:10:29]} Rc8 {[%emt 0:8:11]} 19. Nd1 {[%emt 0:3:46]} Nh6 {[%emt 0:3:15]} 20. Ne3 {[%emt 0:6:14]} Bb5 {[%emt 0:3:31]} 21. Bb7 {[%emt 0:6:11]} Rb8 {[%emt 0:0:55]} 22. Bc6+ {[%emt 0:0:33]} Bxc6 {[%emt 0:3:32]} 23. Rxc6 {[%emt 0:0:5]} a5 {[%emt 0:0:7]} 24. Ra6 {[%emt 0:0:12]} O-O {[%emt 0:1:33]} 25. Rxa5 {[%emt 0:0:5]} Rfc8 {[%emt 0:0:30]} 26. Rd1 {[%emt 0:1:21]} b3 {[%emt 0:0:19]} 27. axb3 {[%emt 0:1:53]} Rxb3 {[%emt 0:0:8]} 28. c3 {[%emt 0:0:21]} Rb4 {[%emt 0:0:18]} 29. Rd8+ {[%emt 0:1:36]} Rxd8 {[%emt 0:0:6]} 30. cxb4 {[%emt 0:0:3]} f6 {[%emt 0:0:49]} 31. b5 {[%emt 0:0:28]} Rb8 {[%emt 0:1:15]} 32. Kc2 {[%emt 0:1:15]} fxe5 {[%emt 0:0:58]} 33. fxe5 {[%emt 0:0:4]} Nf5 {[%emt 0:0:6]} 34. Nc4 {[%emt 0:2:39]} g5 {[%emt 0:0:43]} 35. b6 {[%emt 0:0:18]} Nf4 {[%emt 0:0:22]} 36. Nxf4 {[%emt 0:3:27]} gxf4 {[%emt 0:0:2]} 37. Kd2 {[%emt 0:3:38]} Ne3 {[%emt 0:3:10]} 38. Nxe3 {[%emt 0:0:15]} fxe3+ {[%emt 0:0:4]} 39. Kxe3 {[%emt 0:0:2]} Rxb6 {[%emt 0:0:6]} 40. Ra2 {[%emt 0:0:3]} Kf7 {[%emt 0:2:41]} 41. Kd4 {[%emt 0:31:34]} Rb5 {[%emt 0:30:14]} 42. Kc4 {[%emt 0:0:59]} Rxe5 {[%emt 0:0:6]} 43. b4 {[%emt 0:0:1]} Ke7 {[%emt 0:0:24]} 44. Rd2 {[%emt 0:3:19]} Re1 {[%emt 0:1:6]} 45. b5 {[%emt 0:0:5]} e5 {[%emt 0:1:9]} 46. b6 {[%emt 0:0:38]} e4 {[%emt 0:0:14]} 47. Rb2 {[%emt 0:0:26]} Rc1+ {[%emt 0:1:38]} 48. Kd4 {[%emt 0:0:4]} Rc8 {[%emt 0:0:6]} 49. b7 {[%emt 0:0:4]} Rb8 {[%emt 0:0:3]} 50. Kxe4 {[%emt 0:0:4]} Ke6 {[%emt 0:0:38]} 51. h4 {[%emt 0:0:5]} Kd6 {[%emt 0:0:33]} 52. Kf5 {[%emt 0:0:5]} Kc7 {[%emt 0:0:15]} 53. h5 {[%emt 0:0:4]} Rf8+ {[%emt 0:0:3]} 54. Kg6 {[%emt 0:0:4]} Kb8 {[%emt 0:0:4]} 55. h6 {[%emt 0:1:21]} Rd8 {[%emt 0:0:27]} 56. Rh2 {[%emt 0:1:43]} 1-0

[Event "56th Biel Festival MTO 2023"]
[White "Gomez Barrera,Javiera Belen"]
[Black "Vincenti,Leonardo"]
[Site "Biel"]
[Round "7.32"]
[Annotator "ChessBase"]
[Result "1-0"]
[Date "2023.07.25"]
[WhiteElo "2256"]
[BlackElo "2117"]
[PlyCount "61"]
[TimeControl "60"]

1. e4 {[%emt 0:0:0]} c5 {[%emt 0:0:0]} 2. Nf3 {[%emt 0:0:0]} d6 {[%emt 0:0:0]} 3. d4 {[%emt 0:0:0]} cxd4 {[%emt 0:0:0]} 4. Nxd4 {[%emt 0:0:0]} Nf6 {[%emt 0:0:0]} 5. Nc3 {[%emt 0:0:0]} a6 {[%emt 0:0:0]} 6. Bg5 {[%emt 0:0:0]} e6 {[%emt 0:0:0]} 7. f4 {[%emt 0:0:0]} Be7 {[%emt 0:0:0]} 8. Qf3 {[%emt 0:0:0]} Qc7 {[%emt 0:0:0]} 9. O-O-O {[%emt 0:0:0]} Nbd7 {[%emt 0:0:0]} 10. g4 {[%emt 0:0:0]} b5 {[%emt 0:0:0]} 11. Bxf6 {[%emt 0:0:0]} Nxf6 {[%emt 0:0:0]} 12. g5 {[%emt 0:0:0]} Nd7 {[%emt 0:0:0]} 13. f5 {[%emt 0:0:0]} Bxg5+ {[%emt 0:0:0]} 14. Kb1 {[%emt 0:0:0]} Ne5 {[%emt 0:0:0]} 15. Qh5 {[%emt 0:0:0]} h6 {[%emt 0:0:0]} 16. Nxe6 {[%emt 0:3:39]} Bxe6 {[%emt 0:0:0]} 17. fxe6 {[%emt 0:0:2]} g6 {[%emt 0:0:0]} 18. exf7+ {[%emt 0:0:16]} Kxf7 {[%emt 0:0:0]} 19. Qe2 {[%emt 0:14:7]} Qd8 {[%emt 0:0:0]} 20. Qf2+ {[%emt 0:13:53]} Kg7 {[%emt 0:0:0]} 21. Qd4 {[%emt 0:12:10]} Rf8 {[%emt 0:16:7]} 22. Nd5 {[%emt 0:11:12]} Bh4 {[%emt 0:12:48]} 23. Be2 {[%emt 0:7:25]} Rf2 {[%emt 0:8:8]} 24. Rdf1 {[%emt 0:3:38]} Qf8 {[%emt 0:13:34]} 25. Nc7 {[%emt 0:4:14]} Qc8 {[%emt 0:3:40]} 26. Qxd6 {[%emt 0:21:31]} Rxe2 {[%emt 0:0:50]} 27. Qxe5+ {[%emt 0:0:21]} Kg8 {[%emt 0:0:1]} 28. Qd5+ {[%emt 0:2:0]} Kh8 {[%emt 0:0:23]} 29. Qxa8 {[%emt 0:1:3]} Qxa8 {[%emt 0:0:5]} 30. Nxa8 {[%emt 0:0:2]} Rxe4 {[%emt 0:0:9]} 31. Rf7 {[%emt 0:0:41]} 1-0